fUST/lending_fUST_20260611
["ID","MTS","AMOUNT","RATE_DAILY","PERIOD"]
[424756772,1781129443000,-864.0,0.00019636,2]
[424756770,1781129443000,-500.0,0.00019523,2]
[424756764,1781129443000,-316.800395,0.00019317,2]
[424756762,1781129443000,-551.75248474,0.00019,2]
[424756753,1781129443000,-720.0,0.00017851,2]
[424756766,1781129443000,-223.82925118,0.00019426,2]
[424756786,1781129443000,-1909.34647797,0.0001967,2]
[424757118,1781129446000,-160.0,0.00019765,2]
[424757098,1781129446000,-670.22,0.0001967,2]
[424757114,1781129446000,-102877.7119685,0.0001967,2]
[424757116,1781129446000,-160.0,0.00019765,2]
[424757120,1781129446000,-768.91038747,0.00019765,2]
[424757095,1781129446000,-978.61104329,0.0001967,2]
[424757131,1781129446000,-107167.66425361,0.0002,2]
[424757125,1781129446000,-843.25842762,0.0001993,2]
[424757123,1781129446000,-1505.25329178,0.000198,2]
[424757129,1781129446000,-1505.25329178,0.0002,2]
[424757121,1781129446000,-4381.39211936,0.000198,2]
[424757127,1781129446000,-4381.39211936,0.0002,2]
[424758265,1781129535000,2000.0,0.0002103,120]
[424758266,1781129560000,14993.45384309,0.0002103,120]
[424758267,1781129597000,2000.0,0.0002103,120]
[424758268,1781129622000,6405.68522445,0.0002103,120]
[424758269,1781129659000,2000.0,0.0002103,120]
[424758271,1781129721000,2000.0,0.0002103,120]
[424758272,1781129783000,2000.0,0.0002103,120]
[424758273,1781129845000,2000.0,0.0002103,120]
[424758274,1781129907000,2000.0,0.0002103,120]
[424758275,1781129952000,-615.908,9.507e-05,2]
[424758276,1781129969000,2000.0,0.0002103,120]
[424758277,1781130031000,2000.0,0.0002103,120]
[424758278,1781130094000,2000.0,0.00021031,120]
[424758279,1781130156000,2000.0,0.00021031,120]
[424758280,1781130219000,2000.0,0.00021031,120]
[424758281,1781130281000,2000.0,0.00021031,120]
[424758282,1781130343000,2000.0,0.00021034,120]
[424758283,1781130406000,2000.0,0.00021034,120]
[424758284,1781130468000,2000.0,0.00021034,120]
[424758307,1781130632000,-168.58349631,0.00014874,2]
[424758292,1781130632000,-4629.90808308,9.042e-05,2]
[424758300,1781130632000,-1774.36,9.133e-05,2]
[424758302,1781130632000,-151.0,9.603e-05,2]
[424758305,1781130632000,-199.06275122,0.00014874,2]
[424758298,1781130632000,-370.09191692,9.042e-05,2]
[424758303,1781130632000,-512.198726,0.00014562,2]
[424758309,1781130632000,-195.35858763,0.00014874,2]
[424758311,1781130632000,-156.68799919,0.00014874,2]
[424758313,1781130632000,-263.73965414,0.00014874,2]
[424758315,1781130632000,-201.61812929,0.00014874,2]
[424758317,1781130632000,-165.0660082,0.00014874,2]
[424758319,1781130632000,-183.08649092,0.00014874,2]
[424758321,1781130632000,-157.59772239,0.00014874,2]
[424758323,1781130632000,-165.20061668,0.00014874,2]
[424758326,1781130632000,-18.78396253,0.00014874,2]
[424758324,1781130632000,-162.40368503,0.00014874,2]
[424758325,1781130632000,-155.16025355,0.00014874,2]
[424758390,1781130641000,-160.51699708,0.00015584,2]
[424758386,1781130641000,-175.36187111,0.00014878,2]
[424758387,1781130641000,-1000.0,0.00014994,2]
[424758385,1781130641000,-150.94218111,0.00014875,2]
[424758383,1781130641000,-160.78523118,0.00014875,2]
[424758381,1781130641000,-209.25400709,0.00014875,2]
[424758382,1781130641000,-185.59818824,0.00014875,2]
[424758388,1781130641000,-227.410878,0.00015068,2]
[424758384,1781130641000,-197.86721844,0.00014875,2]
[424758391,1781130641000,-164.98951301,0.00015584,2]
[424758380,1781130641000,-178.50695029,0.00014874,2]
[424758395,1781130641000,-337.16699263,0.00015584,2]
[424758392,1781130641000,-398.12550244,0.00015584,2]
[424758399,1781130641000,-403.23625857,0.00015584,2]
[424758402,1781130641000,-315.19544477,0.00015584,2]
[424758397,1781130641000,-313.37599839,0.00015584,2]
[424758401,1781130641000,-330.13201641,0.00015584,2]
[424758389,1781130641000,-192.06665704,0.00015584,2]
[424758398,1781130641000,-527.47930828,0.00015584,2]
[424758393,1781130641000,-165.07166946,0.00015584,2]
[424758394,1781130641000,-197.09584553,0.00015584,2]
[424758396,1781130641000,-390.71717526,0.00015584,2]
[424758400,1781130641000,-366.17298185,0.00015584,2]
[424758448,1781130642000,-591.87273846,0.00016057,2]
[424758446,1781130642000,-487.21105509,0.00016057,2]
[424758445,1781130642000,-285.44528167,0.00016057,2]
[424758444,1781130642000,-176.60128624,0.00016057,2]
[424758443,1781130642000,-207.94782336,0.00016057,2]
[424758440,1781130642000,-472.79316716,0.00016057,2]
[424758438,1781130642000,-495.19802461,0.00016057,2]
[424758441,1781130642000,-495.60185005,0.00016057,2]
[424758439,1781130642000,-196.73957456,0.00016057,2]
[424758447,1781130642000,-465.48076066,0.00016057,2]
[424758436,1781130642000,-604.85438786,0.00016057,2]
[424758442,1781130642000,-357.91158652,0.00016057,2]
[424758437,1781130642000,-549.25947277,0.00016057,2]
[424758463,1781130642000,-500.0,0.00016133,2]
[424758451,1781130642000,-280.60504628,0.00016058,2]
[424758450,1781130642000,-627.76202127,0.00016058,2]
[424758452,1781130642000,-556.79456473,0.00016058,2]
[424758456,1781130642000,-307.13497434,0.00016058,2]
[424758457,1781130642000,-360.20086775,0.00016058,2]
[424758455,1781130642000,-266.46547779,0.00016058,2]
[424758454,1781130642000,-593.60165531,0.00016058,2]
[424758453,1781130642000,-482.35569355,0.00016058,2]
[424758458,1781130642000,-452.82654334,0.00016058,2]
[424758459,1781130642000,-375.72690035,0.00016058,2]
[424758461,1781130642000,-154.03846954,0.00016061,2]
[424758460,1781130642000,-481.55099124,0.00016061,2]
[424758462,1781130642000,-526.08561332,0.00016061,2]
[424758434,1781130642000,-791.21896241,0.00016057,2]
[424758449,1781130642000,-150.19869908,0.00016058,2]
[424758435,1781130642000,-200.4570103,0.00016057,2]
[424758417,1781130642000,-300.0,0.00015895,2]
[424758432,1781130642000,-586.07576288,0.00016057,2]
[424758405,1781130642000,-310.32050711,0.00015584,2]
[424758404,1781130642000,-324.80737006,0.00015584,2]
[424758403,1781130642000,-330.40123336,0.00015584,2]
[424758406,1781130642000,-394.58182564,0.00015584,2]
[424758409,1781130642000,-371.19637649,0.00015585,2]
[424758407,1781130642000,-500.0,0.00015585,2]
[424758408,1781130642000,-418.50801418,0.00015585,2]
[424758410,1781130642000,-321.57046237,0.00015585,2]
[424758411,1781130642000,-395.73443688,0.00015585,2]
[424758412,1781130642000,-153.56748717,0.00015585,2]
[424758416,1781130642000,-500.0,0.00015859,2]
[424758413,1781130642000,-180.10043388,0.00015585,2]
[424758415,1781130642000,-301.88436222,0.00015585,2]
[424758414,1781130642000,-187.86345018,0.00015585,2]
[424758420,1781130642000,-300.0,0.00015895,2]
[424758421,1781130642000,-2255.0827037,0.00015958,2]
[424758419,1781130642000,-300.0,0.00015895,2]
[424758422,1781130642000,-384.13331408,0.00016057,2]
[424758425,1781130642000,-597.18825366,0.00016057,2]
[424758426,1781130642000,-174.63701329,0.00016057,2]
[424758423,1781130642000,-321.03399416,0.00016057,2]
[424758427,1781130642000,-178.95579326,0.00016057,2]
[424758429,1781130642000,-394.19169106,0.00016057,2]
[424758424,1781130642000,-329.97902603,0.00016057,2]
[424758428,1781130642000,-330.14333892,0.00016057,2]
[424758430,1781130642000,-505.75048894,0.00016057,2]
[424758431,1781130642000,-152.42402866,0.00016057,2]
[424758433,1781130642000,-470.06399758,0.00016057,2]
[424758464,1781130642000,-350.72374221,0.00016373,2]
[424758518,1781130642000,-300.39739817,0.00016373,2]
[424758469,1781130642000,-161.8887429,0.00016373,2]
[424758512,1781130642000,-570.89056334,0.00016373,2]
[424758511,1781130642000,-415.89564673,0.00016373,2]
[424758509,1781130642000,-191.56521608,0.00016373,2]
[424758513,1781130642000,-649.61474012,0.00016373,2]
[424758510,1781130642000,-197.56842621,0.00016373,2]
[424758515,1781130642000,-620.64101421,0.00016373,2]
[424758516,1781130642000,-789.16365128,0.00016373,2]
[424758517,1781130642000,-189.01373693,0.00016373,2]
[424758519,1781130642000,-837.01602836,0.00016373,2]
[424758514,1781130642000,-326.58781297,0.00016373,2]
[424758520,1781130642000,-561.21009256,0.00016373,2]
[424758531,1781130642000,-460.70246151,0.00016373,2]
[424758525,1781130642000,-643.14092474,0.00016373,2]
[424758533,1781130642000,-540.30130163,0.00016373,2]
[424758534,1781130642000,-398.27241995,0.00016373,2]
[424758522,1781130642000,-742.39275297,0.00016373,2]
[424758527,1781130642000,-791.46887375,0.00016373,2]
[424758468,1781130642000,-796.25100488,0.00016373,2]
[424758535,1781130642000,-563.59035053,0.00016373,2]
[424758539,1781130642000,-642.06798833,0.00016376,2]
[424758537,1781130642000,-603.76872445,0.00016373,2]
[424758540,1781130642000,-308.07693909,0.00016376,2]
[424758542,1781130642000,-768.26662816,0.00016376,2]
[424758544,1781130642000,-701.44748442,0.00016376,2]
[424758546,1781130642000,-155.69705966,0.00016376,2]
[424758548,1781130642000,-500.0,0.00016407,2]
[424758550,1781130642000,-215.20617805,0.00016438,2]
[424758508,1781130642000,-788.38338212,0.00016373,2]
[424758504,1781130642000,-523.91103987,0.00016373,2]
[424758529,1781130642000,-162.90146809,0.00016373,2]
[424758505,1781130642000,-660.28667785,0.00016373,2]
[424758470,1781130642000,-349.27402658,0.00016373,2]
[424758506,1781130642000,-536.86737978,0.00016373,2]
[424758465,1781130642000,-576.19997112,0.00016373,2]
[424758466,1781130642000,-188.02006168,0.00016373,2]
[424758471,1781130642000,-495.21500839,0.00016373,2]
[424758467,1781130642000,-494.96853904,0.00016373,2]
[424758473,1781130642000,-162.27225706,0.00016373,2]
[424758474,1781130642000,-674.33398525,0.00016373,2]
[424758476,1781130642000,-304.84805731,0.00016373,2]
[424758475,1781130642000,-183.49801147,0.00016373,2]
[424758478,1781130642000,-781.43435051,0.00016373,2]
[424758477,1781130642000,-378.65450528,0.00016373,2]
[424758480,1781130642000,-303.50406284,0.00016373,2]
[424758482,1781130642000,-1054.95861655,0.00016373,2]
[424758472,1781130642000,-591.28753659,0.00016373,2]
[424758484,1781130642000,-400.91402059,0.00016373,2]
[424758496,1781130642000,-630.39088954,0.00016373,2]
[424758503,1781130642000,-440.84211616,0.00016373,2]
[424758479,1781130642000,-626.75199677,0.00016373,2]
[424758497,1781130642000,-660.80246673,0.00016373,2]
[424758495,1781130642000,-393.47914913,0.00016373,2]
[424758500,1781130642000,-659.95805206,0.00016373,2]
[424758501,1781130642000,-207.40917178,0.00016373,2]
[424758494,1781130642000,-313.07944234,0.00016373,2]
[424758491,1781130642000,-213.85248148,0.00016373,2]
[424758493,1781130642000,-660.26403282,0.00016373,2]
[424758488,1781130642000,-732.34596369,0.00016373,2]
[424758486,1781130642000,-806.47251715,0.00016373,2]
[424758499,1781130642000,-376.04012336,0.00016373,2]
[424758594,1781130643000,-787.98861193,0.00016692,2]
[424758601,1781130643000,-1194.37650732,0.00017162,2]
[424758592,1781130643000,-802.58498541,0.00016692,2]
[424758597,1781130643000,-876.80935553,0.00016692,2]
[424758596,1781130643000,-960.3332852,0.00016692,2]
[424758599,1781130643000,-600.0,0.00016699,2]
[424758591,1781130643000,-754.71090556,0.00016689,2]
[424758602,1781130643000,-1011.50097788,0.00017162,2]
[424758608,1781130643000,-172.229,0.00017245,2]
[424758604,1781130643000,-1098.51894554,0.00017162,2]
[424758607,1781130643000,-905.65308667,0.00017162,2]
[424758605,1781130643000,-991.20370009,0.00017162,2]
[424758606,1781130643000,-974.42211017,0.00017162,2]
[424758611,1781130643000,-186.74585698,0.00017692,2]
[424758610,1781130643000,-255.098879,0.00017298,2]
[424758612,1781130643000,-1180.08447419,0.00017871,2]
[424758589,1781130643000,-989.33609219,0.00016689,2]
[424758613,1781130643000,-1846.17757897,0.00017871,2]
[424758603,1781130643000,-1582.43792483,0.00017162,2]
[424758587,1781130643000,-986.4545641,0.00016688,2]
[424758562,1781130643000,-163.0,0.0001663,3]
[424758583,1781130643000,-976.79293814,0.00016688,2]
[424758609,1781130643000,-150.307,0.00017245,2]
[424758552,1781130643000,-430.41235609,0.00016438,2]
[424758553,1781130643000,-176.3570704,0.00016438,2]
[424758555,1781130643000,-352.7141408,0.00016438,2]
[424758558,1781130643000,-186.74585698,0.00016588,2]
[424758557,1781130643000,-529.07121121,0.00016438,2]
[424758560,1781130643000,-255.098879,0.00016599,2]
[424758564,1781130643000,-500.0,0.00016681,2]
[424758585,1781130643000,-812.01842515,0.00016688,2]
[424758565,1781130643000,-995.3137561,0.00016688,2]
[424758579,1781130643000,-824.94756507,0.00016688,2]
[424758569,1781130643000,-783.43999596,0.00016688,2]
[424758567,1781130643000,-842.91748157,0.00016688,2]
[424758571,1781130643000,-1318.69827069,0.00016688,2]
[424758572,1781130643000,-1008.09064644,0.00016688,2]
[424758578,1781130643000,-826.00308341,0.00016688,2]
[424758576,1781130643000,-825.33004102,0.00016688,2]
[424758574,1781130643000,-915.43245461,0.00016688,2]
[424758581,1781130643000,-985.47922765,0.00016688,2]
[424758614,1781130643000,-1330.10111042,0.00017871,2]
[424758651,1781130643000,-768.91038747,0.00019743,2]
[424758618,1781130643000,-212.21,0.00018,2]
[424758643,1781130643000,-207.29071114,0.000196,2]
[424758646,1781130643000,-1608.40526685,0.000197,2]
[424758644,1781130643000,-193.1613905,0.00019612,2]
[424758649,1781130643000,-567.94,0.00019726,2]
[424758650,1781130643000,-300.35140377,0.00019743,2]
[424758653,1781130643000,-266.75007439,0.00019845,2]
[424758652,1781130643000,-160.0,0.00019743,2]
[424758654,1781130643000,-1608.40526685,0.000199,2]
[424758642,1781130643000,-300.0,0.00019596,2]
[424758657,1781130643000,-2255.08270364,0.00019921,2]
[424758656,1781130643000,-186.74585698,0.000199,2]
[424758658,1781130643000,-787.04119914,0.00019934,2]
[424758660,1781130643000,-254440.80249538,0.0002,2]
[424758659,1781130643000,-18832.33574639,0.0002,2]
[424758661,1781130643000,-1957.73185901,0.00014726,2]
[424758662,1781130643000,-4.39832071,0.00014726,2]
[424758663,1781130643000,-773.1847745,0.00014726,2]
[424758615,1781130643000,-255.098879,0.00017996,2]
[424758655,1781130643000,-7069.00837225,0.000199,2]
[424758648,1781130643000,-190.34962631,0.000197,2]
[424758645,1781130643000,-14035.1436065,0.00019612,2]
[424758641,1781130643000,-579.4841714,0.00019596,2]
[424758620,1781130643000,-212.21,0.00018,2]
[424758617,1781130643000,-212.21,0.00018,2]
[424758622,1781130643000,-161.82,0.00018292,2]
[424758624,1781130643000,-161.82,0.00018294,2]
[424758628,1781130643000,-227.410878,0.00018493,2]
[424758647,1781130643000,-7069.00837225,0.000197,2]
[424758631,1781130643000,-186.74585698,0.00018796,2]
[424758626,1781130643000,-720.0,0.00018369,2]
[424758633,1781130643000,-1348.66797051,0.00018936,2]
[424758629,1781130643000,-567.94,0.0001863,2]
[424758630,1781130643000,-255.098879,0.00018695,2]
[424758634,1781130643000,-2109.91723311,0.00018936,2]
[424758635,1781130643000,-1520.11555477,0.00018936,2]
[424758636,1781130643000,-567.94,0.00019178,2]
[424758637,1781130643000,-255.098879,0.00019394,2]
[424758638,1781130643000,-567.94,0.00019452,2]
[424758640,1781130643000,-7689.9596875,0.00019596,2]
[424758639,1781130643000,-183.1585829,0.000195,2]
[424758632,1781130643000,-567.94,0.00018904,2]
[424758694,1781130646000,-20003.75564557,0.000202,2]
[424758691,1781130646000,-255.098879,0.00020092,2]
[424758688,1781130646000,-2881.12012045,0.0002,2]
[424758689,1781130646000,-300.0,0.0002,4]
[424758683,1781130646000,-2264.68504578,0.00014726,2]
[424758684,1781130646000,-500.0,0.00015583,2]
[424758685,1781130646000,-500.0,0.00015583,2]
[424758692,1781130646000,-1608.40526685,0.000201,2]
[424758687,1781130646000,-465.30649632,0.00015583,2]
[424758690,1781130646000,-567.94,0.0002,2]
[424758686,1781130646000,-500.0,0.00015583,2]
[424758695,1781130646000,-864.0,0.00020206,2]
[424758693,1781130646000,-7069.00837225,0.000201,2]
[424758697,1781130646000,-1608.40526685,0.000203,2]
[424758698,1781130646000,-7069.00837225,0.000203,2]
[424758703,1781130646000,-567.94,0.00020548,2]
[424758699,1781130646000,-1608.40526685,0.000205,2]
[424758696,1781130646000,-567.94,0.00020274,2]
[424758700,1781130646000,-7069.00837225,0.000205,2]
[424758702,1781130646000,-1710.12999911,0.00020533,2]
[424758701,1781130646000,-2373.65688724,0.00020533,2]
[424758704,1781130646000,-980.86664609,0.000207,2]
[424758705,1781130710000,-153.84813158,0.00014878,2]
[424758706,1781130726000,-5000.0,0.00015427,2]
[424758707,1781130906000,2000.0,0.00021034,120]
[424758708,1781130971000,485.0,0.0002411,30]
[424758733,1781131832000,-637.63281249,0.00013321,2]
[424758976,1781131839000,-407.89750886,0.00015584,2]
[424758980,1781131839000,-192.61377848,0.00015588,2]
[424758995,1781131839000,-190.19630119,0.00015588,2]
[424758984,1781131839000,-302.38034932,0.00015588,2]
[424758975,1781131839000,-154.61618209,0.00015584,2]
[424758982,1781131839000,-340.65515919,0.00015588,2]
[424758978,1781131839000,-328.50352948,0.00015584,2]
[424758988,1781131839000,-386.83031536,0.00015588,2]
[424758986,1781131839000,-314.83666067,0.00015588,2]
[424758993,1781131839000,-402.80603653,0.00015588,2]
[424759005,1781131839000,-312.110364,0.00015588,2]
[424759001,1781131839000,-342.85942237,0.00015588,2]
[424758997,1781131839000,-391.19223511,0.00015588,2]
[424758999,1781131839000,-341.43601075,0.00015588,2]
[424758990,1781131839000,-387.09536053,0.00015588,2]
[424759003,1781131839000,-548.73683054,0.00015588,2]
[424759007,1781131839000,-413.57434455,0.00015588,2]
[424758971,1781131839000,-185.32747609,0.0001488,2]
[424759009,1781131839000,-300.35826055,0.0001559,2]
[424759023,1781131839000,-3517.24248597,0.000156,2]
[424759013,1781131839000,-370.65495218,0.0001559,2]
[424759011,1781131839000,-329.4631197,0.0001559,2]
[424758992,1781131839000,-342.02852798,0.00015588,2]
[424758972,1781131839000,-274.663811,0.00015068,2]
[424758956,1781131839000,-170.71800537,0.00014878,2]
[424758966,1781131839000,-150.17913027,0.0001488,2]
[424759025,1781131839000,-500.0,0.00015874,2]
[424758919,1781131839000,-2774.21075616,0.00013321,2]
[424758922,1781131839000,-5000.0,0.00013456,2]
[424758934,1781131839000,-494.07541095,0.00014796,2]
[424758932,1781131839000,-210.73380479,0.00014778,2]
[424758938,1781131839000,-164.25176474,0.00014874,2]
[424758924,1781131839000,-183.15858,0.00014318,2]
[424758925,1781131839000,-1000.0,0.00014517,2]
[424758930,1781131839000,-483.375958,0.00014584,2]
[424758936,1781131839000,-203.94875443,0.00014874,2]
[424758928,1781131839000,-167.0,0.00014583,2]
[424758940,1781131839000,-170.3275796,0.00014878,2]
[424758952,1781131839000,-201.40301826,0.00014878,2]
[424758954,1781131839000,-195.59611755,0.00014878,2]
[424758958,1781131839000,-171.42971119,0.00014878,2]
[424758944,1781131839000,-157.41833033,0.00014878,2]
[424758946,1781131839000,-193.41515768,0.00014878,2]
[424758942,1781131839000,-151.19017466,0.00014878,2]
[424758960,1781131839000,-274.36841527,0.00014878,2]
[424758948,1781131839000,-193.54768026,0.00014878,2]
[424758950,1781131839000,-171.01426399,0.00014878,2]
[424758962,1781131839000,-156.055182,0.00014878,2]
[424758964,1781131839000,-206.78717228,0.00014878,2]
[424758969,1781131839000,-164.73155985,0.0001488,2]
[424759027,1781131839000,-233.70980434,0.00015961,2]
[424759033,1781131839000,-492.75529422,0.00016057,2]
[424759019,1781131839000,-3517.24248599,0.000156,2]
[424759082,1781131839000,-815.79501772,0.00016373,2]
[424759080,1781131839000,-494.0584353,0.00016257,2]
[424759084,1781131839000,-657.00705896,0.00016373,2]
[424759085,1781131839000,-323.77748579,0.00016376,2]
[424759094,1781131839000,-494.15140355,0.00016377,2]
[424759089,1781131839000,-353.20257248,0.00016377,2]
[424759087,1781131839000,-324.54451411,0.00016376,2]
[424759097,1781131839000,-364.6698954,0.00016377,2]
[424759099,1781131839000,-681.31031838,0.00016377,2]
[424759101,1781131839000,-604.76069864,0.00016377,2]
[424759102,1781131839000,-327.43814294,0.00016377,2]
[424759108,1781131839000,-774.19072105,0.00016377,2]
[424759116,1781131839000,-570.58890357,0.00016377,2]
[424759106,1781131839000,-773.66063071,0.00016377,2]
[424759110,1781131839000,-684.05705596,0.00016377,2]
[424759114,1781131839000,-805.61207306,0.00016377,2]
[424759104,1781131839000,-629.67332133,0.00016377,2]
[424759117,1781131839000,-782.38447022,0.00016377,2]
[424759119,1781131839000,-380.70218328,0.00016377,2]
[424759121,1781131839000,-682.87202149,0.00016377,2]
[424759123,1781131839000,-685.71884474,0.00016377,2]
[424759125,1781131839000,-1097.47366107,0.00016377,2]
[424759029,1781131839000,-309.23236417,0.00016057,2]
[424759064,1781131839000,-468.165546,0.00016061,2]
[424759074,1781131839000,-311.5303775,0.00016064,2]
[424759112,1781131839000,-414.81834356,0.00016377,2]
[424759062,1781131839000,-823.1052458,0.00016061,2]
[424759015,1781131839000,-155.76518875,0.0001559,2]
[424759078,1781131839000,-500.0,0.00016148,2]
[424759017,1781131839000,-500.0,0.000156,2]
[424759021,1781131839000,-3517.24248597,0.000156,2]
[424759031,1781131839000,-611.84626329,0.00016057,2]
[424759048,1781131839000,-580.64304079,0.00016061,2]
[424759047,1781131839000,-580.24547304,0.00016061,2]
[424759054,1781131839000,-380.39260238,0.00016061,2]
[424759035,1781131839000,-385.22755697,0.00016061,2]
[424759052,1781131839000,-604.20905479,0.00016061,2]
[424759037,1781131839000,-247.07570178,0.00016061,2]
[424759041,1781131839000,-453.57052398,0.00016061,2]
[424759050,1781131839000,-513.04279197,0.00016061,2]
[424759039,1781131839000,-510.98273879,0.00016061,2]
[424759068,1781131839000,-450.53739082,0.00016064,2]
[424759072,1781131839000,-555.98242827,0.00016064,2]
[424759076,1781131839000,-527.79208592,0.00016064,2]
[424759070,1781131839000,-494.19467954,0.00016064,2]
[424759060,1781131839000,-514.28913356,0.00016061,2]
[424759066,1781131839000,-620.36151683,0.00016061,2]
[424759056,1781131839000,-586.78835266,0.00016061,2]
[424759045,1781131839000,-472.254991,0.00016061,2]
[424759043,1781131839000,-163.71907147,0.00016061,2]
[424759058,1781131839000,-512.15401612,0.00016061,2]
[424759205,1781131840000,-2098.7224853,0.00018918,2]
[424759254,1781131840000,-1812.62716438,0.00020538,2]
[424759178,1781131840000,-901.07478164,0.00017168,2]
[424759194,1781131840000,-643.66,0.0001863,2]
[424759198,1781131840000,-643.66,0.00018904,2]
[424759201,1781131840000,-1058.5688606,0.00018918,2]
[424759200,1781131840000,-6972.6657686,0.00018918,2]
[424759196,1781131840000,-720.0,0.00018726,2]
[424759203,1781131840000,-3648.7708891,0.00018918,2]
[424759209,1781131840000,-2194.94732214,0.0001894,2]
[424759207,1781131840000,-1611.22414612,0.0001894,2]
[424759211,1781131840000,-643.66,0.00019178,2]
[424759232,1781131840000,-200.32160376,0.000201,2]
[424759215,1781131840000,-198.61555944,0.000196,2]
[424759217,1781131840000,-321.9414284,0.00019664,2]
[424759219,1781131840000,-200.32160376,0.000197,2]
[424759221,1781131840000,-3436.31752152,0.000197,2]
[424759129,1781131840000,-316.59195419,0.00016377,2]
[424759225,1781131840000,-200.32160376,0.000199,2]
[424759228,1781131840000,-300.0,0.000199,2]
[424759227,1781131840000,-3436.31752152,0.000199,2]
[424759230,1781131840000,-643.66,0.0002,2]
[424759234,1781131840000,-3436.31752152,0.000201,2]
[424759240,1781131840000,-643.66,0.00020274,2]
[424759184,1781131840000,-1409.82112785,0.00017875,2]
[424759213,1781131840000,-643.66,0.00019452,2]
[424759172,1781131840000,-1208.41810959,0.00017165,2]
[424759137,1781131840000,-741.30990436,0.00016379,2]
[424759190,1781131840000,-250.0,0.00017987,2]
[424759127,1781131840000,-624.220728,0.00016377,2]
[424759133,1781131840000,-600.71652109,0.00016379,2]
[424759131,1781131840000,-827.14868911,0.00016377,2]
[424759135,1781131840000,-658.92623939,0.00016379,2]
[424759139,1781131840000,-467.29556625,0.00016379,2]
[424759143,1781131840000,-703.72278123,0.00016379,2]
[424759141,1781131840000,-250.07231548,0.00016379,2]
[424759145,1781131840000,-214.57927572,0.00016438,2]
[424759147,1781131840000,-192.10665944,0.00016592,2]
[424759151,1781131840000,-967.07578839,0.00016692,2]
[424759153,1781131840000,-1007.01509132,0.00016692,2]
[424759157,1781131840000,-857.14855593,0.00016692,2]
[424759192,1781131840000,-274.663811,0.00018493,2]
[424759159,1781131840000,-1371.84207634,0.00016692,2]
[424759155,1781131840000,-853.59002686,0.00016692,2]
[424759162,1781131840000,-750.89565136,0.00016695,2]
[424759160,1781131840000,-1033.93586138,0.00016692,2]
[424759164,1781131840000,-823.65779924,0.00016695,2]
[424759166,1781131840000,-926.63738045,0.00016695,2]
[424759170,1781131840000,-600.0,0.00017024,2]
[424759168,1781131840000,-787.09165167,0.00016695,2]
[424759174,1781131840000,-1028.57826712,0.00017165,2]
[424759176,1781131840000,-1646.21049161,0.00017165,2]
[424759188,1781131840000,-1920.57890688,0.00017875,2]
[424759182,1781131840000,-150.308,0.0001725,2]
[424759186,1781131840000,-1200.0079783,0.00017875,2]
[424759149,1781131840000,-1019.74377215,0.00016688,2]
[424759257,1781131840000,-643.66,0.00020548,2]
[424759180,1781131840000,-168.638,0.0001725,2]
[424759243,1781131840000,-200.32160376,0.000203,2]
[424759311,1781131840000,-500.0,0.00021917,2]
[424759313,1781131840000,-500.0,0.00021917,2]
[424759317,1781131840000,-500.0,0.00021917,2]
[424759323,1781131840000,-404.6914051,0.00021917,2]
[424759319,1781131840000,-500.0,0.00021917,2]
[424759315,1781131840000,-500.0,0.00021917,2]
[424759321,1781131840000,-500.0,0.00021917,2]
[424759327,1781131840000,-500.0,0.00021917,2]
[424759325,1781131840000,-1114.16,0.00021917,2]
[424759329,1781131840000,-274.663811,0.00021918,2]
[424759331,1781131840000,-643.66,0.00021918,2]
[424759335,1781131840000,-500.0,0.00022191,2]
[424759309,1781131840000,-500.0,0.00021917,2]
[424759333,1781131840000,-500.0,0.00022191,2]
[424759347,1781131840000,-500.0,0.00022191,2]
[424759339,1781131840000,-500.0,0.00022191,2]
[424759341,1781131840000,-500.0,0.00022191,2]
[424759356,1781131840000,-412.54694579,0.00022465,2]
[424759345,1781131840000,-500.0,0.00022191,2]
[424759351,1781131840000,-474.23507931,0.00022191,2]
[424759343,1781131840000,-534.60971862,0.00022191,2]
[424759349,1781131840000,-1114.16,0.00022191,2]
[424759354,1781131840000,-500.0,0.00022465,2]